Workbook

Sheet Pokyny

Sheet Žádost
D3: ŽÁDOST O POSKYTNUTÍ PODPORY
D4: z grantového systému pro diakonické a rozvojové projekty ČCE
B6: Evidenční číslo (žadatel nevyplňuje)
B7: Název grantového programu | I7: Rozvoj sborů, výchova a vzdělávání 2017
B8: Název projektu
B9: Žadatel1 | E9: Úplný název
E10: Sídlo žadatele (ulice, obec, PSČ)
E11: IČ
E12: Právní status
E13: Bank. spojení (název banky, č. účtu)
E14: Tel., Fax, E-mail
E15: Statutární zástupci
E16: Kontaktní osoba
B17: 1Je-li žadatelem sbor ČCE, vyplní pouze řádek "úplný název" a "Kontaktní osoba" (příp. tel., fax a email, jsou-li odlišné od spojení na sbor)
B19: Celkový rozpočet projektu | I19: =IF(M80<>O119,"Celkové náklady v části 9A a 9B se neshodují!",M80) -> 0 | O19: Kč
B20: Požadovaná výše podpory (% z celkové výše rozpočtu projektu) | I20: =IF(M80<>O119,"Celkové náklady v části 9A a 9B se neshodují!",IF(M71>(M80*0.9),"Požadovaná podpora překračuje limit 90% celkových výdajů",M71)) -> 0 | O20: Kč | Q20: (= | R20: =IF(AND(M80>0,M80=O119),M71/I19*100,"-") -> - | S20: %)
B21: Podíl na spolufinancování projektu (vlastní prostředky žadatele, granty, dary, příjmy ze vstupného, účastnické poplatky, apod.)* (% z celkové výše projektu) | I21: =IF(M80<>O119,"Celkové náklady v části 9A a 9B se neshodují!",SUM(M72:S79)) -> 0 | O21: Kč | Q21: (= | R21: =IF(AND(M80>0,M80=O119),I21/I19*100,"-") -> - | S21: %)
B23: *Do podílu na spolufinancování nelze započíst prostředky získané z jiných podpůrných systémů v rámci ČCE (Jeronymova jednota, granty ze seniorátu atp.).
B25: 1. Lokalizace projektu
B26: (Město/obec/sbor/seniorát)
B29: 2. Odůvodnění projektu **
B30: (Popište výchozí situaci, která vás vede k podání žádosti)
B33: 3. Cíle projektu, cílové skupiny **
B34: (Charakteristiky cílových skupin a výčet cílů, jichž má být projektem být ve vztahu k nim dosaženo)
B37: 4. Popis projektu **
B38: (V případě potřeby podrobněji rozepište v příloze žádosti)
B41: **) V odstavcích 2), 3) a 4) uvádějte pouze informace, které nejsou dostatečně zřetelné ze samotného názvu a povahy projektu (např. v případě rozvoje práce s matkami a dětmi by bylo zbytečné psát, že cílovou skupinou jsou matky s dětmi). V případě nedostatku místa ve formuláři prosím rozepište v samostatné příloze žádosti (nepovinná příloha).
B43: 5. Výstupy projektu
B44: (Uveďte konkrétní a pokud možno kvantifikované výstupy projektu)
B47: 6. Dlouhodobé náklady vyvolané realizací projektu a jejich pokrytí
B48: (Specifikujte v případě, že případné výdaje na stavební práce a jiné investiční výdaje nezbytné pro dosažení hlavních cílů projektu vyvolají do budoucna potřebu krýt náklady na energie, údržbu aj.)
B51: 7. Časový harmonogram realizace projektu - začátek/ukončení projektu
A52: Aktivity projektu | F52: 2016-09-01 | G52: 2016-10-01 | H52: 2016-11-01 | I52: 2016-12-01 | J52: 2017-01-01 | K52: 2017-02-01 | L52: 2017-03-01 | M52: 2017-04-01 | N52: 2017-05-01 | O52: 2017-06-01 | P52: 2017-07-01 | Q52: 2017-08-01 | R52: 2017-09-01 | S52: 2017-10-01 | T52: 2017-11-30 | U52: 2017-12-01
A53: Podání žádosti | F53: X
A54: Podpis smlouvy
A62: Závěrečná zpráva a vyúčtování
A63: @^%#1
B64: 8. Organizační a odborné zabezpečení projektu
B65: (Popište své odborné a organizační schopnosti včetně předešlých zkušeností s realizací projektů)
B68: 9. Rozpočet projektu
B70: 9A. Struktura rozpočtových zdrojů
B71: Požadovaná výše podpory z grantového systému | T71: Kč
B72: Vlastní prostředky žadatele | T72: Kč
B73: Příspěvek obce či jiného subjektu | T73: Kč
B74: Očekávané příjmy žadatele (účastnické poplatky apod.) | T74: Kč
B75: Granty, dary | T75: Kč
B76: Jiné (specifikujte) | T76: Kč
T77: Kč
T78: Kč
T79: Kč
B80: ROZPOČTOVÉ ZDROJE CELKEM | M80: =SUM(M71:S79) -> 0 | T80: Kč
B82: Bližší specifikace rozpočtových zdrojů (zde prosíme každý z výše uvedených rozpočtových zdrojů (mimo DaRP) podrobněji specifikujte (např. příspěvek obce XY, příspěvek nadace YZ, atd.)
B85: Do rozpočtových zdrojů nelze zahrnout jiné podpůrné systémy v rámci ČCE (Jeronymova jednota, granty ze seniorátu atp.)!
B87: 9B. Struktura rozpočtových výdajů
A88: @^%#2 | B88: I. Stavební práce (stavby, rekonstrukce, opravy) | O88: =ROUND(SUM(O89:S93),2) -> 0 | T88: Kč
C89: 1.01 | T89: Kč
C90: =C89+0.01 -> 1.02 | T90: Kč
C91: =C90+0.01 -> 1.03 | T91: Kč
C92: =C91+0.01 -> 1.04 | T92: Kč
C93: =C92+0.01 -> 1.05 | T93: Kč
A94: @^%#3 | B94: II. Vybavení (nábytek, zařízení, nádobí, přístroje, hračky aj.) | O94: =ROUND(SUM(O95:S99),2) -> 0 | T94: Kč
C95: 2.01 | T95: Kč
C96: =C95+0.01 -> 2.02 | T96: Kč
C97: =C96+0.01 -> 2.03 | T97: Kč
C98: 2.04 | T98: Kč
C99: 2.05 | T99: Kč
A100: @^%#4 | B100: III. Publikace, propagace (plakáty, brožury aj.) | O100: =ROUND(SUM(O101:S105),2) -> 0 | T100: Kč
C101: 3.01 | T101: Kč
C102: =C101+0.01 -> 3.02 | T102: Kč
C103: 3.03 | T103: Kč
C104: 3.04 | T104: Kč
C105: 3.05 | T105: Kč
A106: @^%#5 | B106: IV. Přednášející, vystupující aj. (odměny, cestovné, ubytování atp.) | O106: =ROUND(SUM(O107:S111),2) -> 0 | T106: Kč
C107: 4.01 | T107: Kč
C108: =C107+0.01 -> 4.02 | T108: Kč
C109: 4.03 | T109: Kč
C110: 4.04 | T110: Kč
C111: 4.05 | T111: Kč
B112: V. Administrace, koordinace (telekomunikace, kopírování kanc. materiál, příp. odměny za koordinaci) – uznatelné pouze jako paušální částka do výše max. 5% z celkových výdajů (lze nižší) | O112: =ROUND(((O113+O106+O100+O94+O88)/0.95) - (O113+O106+O100+O94+O88),2) -> 0 | T112: Kč
A113: @^%#6 | B113: VI. Jiné (specifikujte) | O113: =ROUND(SUM(O114:S118),2) -> 0 | T113: Kč
C114: 6.01 | T114: Kč
C115: =C114+0.01 -> 6.02 | T115: Kč
C116: =C115+0.01 -> 6.03 | T116: Kč
C117: 6.04 | T117: Kč
C118: 6.05 | T118: Kč
B119: ROZPOČTOVÉ VÝDAJE CELKEM | O119: =SUM(O113,O106,O100,O94,O88,O112) -> 0 | T119: Kč
B121: Žadatelé, kteří mohou uplatnit odpočet DPH na vstupu, uvádějí výdaje bez DPH. Ostatní uvádějí výdaje včetně DPH.
A123: @^%#7 | B123: 10. Stručná charakteristika činnosti žadatele
B124: (Sbory nevyplňují)
B126: Je žadatel plátcem DPH? (vyberte) | O126: Prosím vyberte:
B127: Má žadatel nárok na odpočet DPH? (vyberte) | O127: Prosím vyberte: | U127: Ano
U128: Ne
B129: 11. Žádost zpracoval:
B130: (Jméno, název instituce, kontaktní údaje)
A133: @^%#8 | B133: 12. Seznam příloh
B134: Uveďte seznam všech příloh, které k žádosti přikládáte. Přílohy očíslujte. Předepsané, světle šedě podbarvené přílohy (1. - 6.) jsou povinné, další (nepovinné) přílohy uveďte níže (7. a dále)
B135: 1. | C135: Stručný a věcný popis naplnění specifických kritérií, uvedených ve výzvě
B136: 2. | C136: Kopie dokladů dokládajících vlastnický nebo dlouhodobý nájemní vztah k nemovitostem a souhlas majitele nemovitosti s provedením staveb či stavebních úprav (pouze v případě projektů zahrnujících stavební práce týkající se nemovitostí)
B137: 3. | C137: Přehledová mapa s lokalizací místa realizace projektu (pouze je-li místo realizace projektu odlišné od sídla sboru, který je nositelem nebo spolupředkladatelem projektu)
B138: 4. | C138: Písemné potvrzení příslušného sboru ČCE o spolupráci na projektu - u žádostí podávaných organizační jednotkou Diakonie ČCE nebo jinou nestátní neziskovou organizací
B139: 5. | C139: Stanovisko seniorátního výboru - u žádostí týkajících se projektů realizovaných farním sborem nebo ve spolupráci s ním
B140: 6. | C140: Kopie dokumentů prokazujících registraci žadatele a uvádějících rovněž jméno jeho statutárního zástupce - u žádostí podávaných jinou organizací než sborem nebo organizační jednotkou Diakonie ČCE
B141: 7.
A166: @^%#9
B186: Razítko a podpisy statutárních zástupců žadatele
B189: ________________________________________________________________________________
